bitfinex/quotes_SOLUSD_20230404
["timestamp","ask_amount","ask_price","bid_price","bid_amount"]
[1680596466762,20.0,20.477,20.463,20.0]
[1680596467083,20.0,20.477,20.461,20.0]
[1680596467662,17.0,20.476,20.461,20.0]
[1680596469978,20.0,20.479,20.461,20.0]
[1680596470270,20.0,20.479,20.462,17.0]
[1680596470458,20.0,20.477,20.463,20.0]
[1680596474073,17.0,20.478,20.463,20.0]
[1680596474281,20.0,20.479,20.463,20.0]
[1680596475061,134.00071197,20.49,20.463,20.0]
[1680596475262,134.00071197,20.49,20.464,24.3050432]
[1680596475580,134.00071197,20.49,20.466,20.0]
[1680596475879,134.00071197,20.49,20.467,17.0]
[1680596476062,134.00071197,20.49,20.467,37.0]
[1680596477560,109.2681,20.484,20.467,37.0]
[1680596478063,109.2681,20.484,20.467,44.3050432]
[1680596478469,109.2681,20.484,20.468,20.0]
[1680596478672,109.2681,20.484,20.469,17.0]
[1680596479068,109.2681,20.484,20.47,28.2]
[1680596479375,109.2681,20.484,20.472,20.0]
[1680596479760,109.2681,20.484,20.472,27.3050432]
[1680596479979,86.07971197,20.49,20.472,27.3050432]
[1680596480262,20.0,20.489,20.473,17.0]
[1680596480462,20.0,20.489,20.474,20.0]
[1680596480971,20.0,20.49,20.474,20.0]
[1680596481174,109.7209,20.493,20.48,28.16]
[1680596481365,225.4382,20.504,20.481,17.0]
[1680596481566,20.0,20.503,20.482,20.0]
[1680596481871,20.0,20.503,20.483,17.0]
[1680596482074,20.0,20.503,20.484,20.0]
[1680596482375,225.4382,20.504,20.486,20.0]
[1680596482576,225.4382,20.504,20.487,17.0]
[1680596482966,225.4382,20.504,20.487,24.3050432]
[1680596483480,225.4382,20.504,20.488,20.0]
[1680596483689,225.4382,20.504,20.489,17.0]
[1680596485964,225.4382,20.504,20.487,7.3050432]
[1680596486172,225.4382,20.504,20.488,17.0]
[1680596486784,37.0,20.503,20.488,17.0]
[1680596486989,17.0,20.503,20.487,17.0]
[1680596490071,17.0,20.503,20.485,17.0]
[1680596490273,17.0,20.503,20.487,20.0]
[1680596490783,17.0,20.503,20.486,20.0]
[1680596490982,17.0,20.503,20.487,37.0]
[1680596494179,37.0,20.503,20.487,37.0]
[1680596496367,17.0,20.503,20.487,20.0]
[1680596496569,37.0,20.488,20.485,20.0]
[1680596496778,37.0,20.488,20.484,20.0]
[1680596499574,37.0,20.488,20.481,20.0]
[1680596499774,37.0,20.488,20.482,17.0]
[1680596499979,37.0,20.488,20.483,20.0]
[1680596501384,37.0,20.488,20.483,27.3050432]
[1680596503402,37.0,20.488,20.484,17.0]
[1680596503983,37.0,20.488,20.485,20.0]
[1680596506095,37.0,20.488,20.481,20.0]
[1680596506499,37.0,20.488,20.482,7.3050432]
[1680596506692,37.0,20.488,20.483,20.0]
[1680596512700,37.0,20.488,20.481,20.0]
[1680596514284,37.0,20.488,20.482,17.0]
[1680596514490,37.0,20.488,20.483,20.0]
[1680596516209,37.0,20.488,20.484,7.3050432]
[1680596516402,37.0,20.488,20.485,20.0]
[1680596516909,37.0,20.488,20.485,27.3050432]
[1680596519308,20.0,20.497,20.485,27.3050432]
[1680596520505,108.3498,20.498,20.485,27.3050432]
[1680596521099,20.0,20.497,20.485,27.3050432]
[1680596522616,108.3498,20.498,20.485,46.8310432]
[1680596522920,108.3498,20.498,20.486,17.0]
[1680596523111,108.3498,20.498,20.487,40.0]
[1680596523300,108.3498,20.498,20.487,104.96536648]
[1680596523503,108.3498,20.498,20.488,17.0]
[1680596523911,108.3498,20.498,20.489,20.0]
[1680596525040,108.3498,20.498,20.488,17.0]
[1680596530934,108.3498,20.498,20.489,20.0]
[1680596533732,108.3498,20.498,20.488,17.0]
[1680596537337,108.3498,20.498,20.487,20.0]
[1680596537542,108.3498,20.498,20.486,20.0]
[1680596539929,108.3498,20.498,20.485,20.0]
[1680596540939,108.3498,20.498,20.485,84.96536648]
[1680596544345,108.3498,20.498,20.486,20.0]
[1680596544947,108.3498,20.498,20.486,64.96536648]
[1680596545141,108.3498,20.498,20.487,20.0]
[1680596548741,108.3498,20.498,20.487,84.96536648]
[1680596548943,108.3498,20.498,20.487,92.27040968]
[1680596549145,108.3498,20.498,20.488,20.0]
[1680596549442,108.3498,20.498,20.488,84.96536648]
[1680596550740,108.3498,20.498,20.488,72.27040968]
[1680596556751,108.3498,20.498,20.49,20.0]
[1680596557343,108.3498,20.498,20.489,17.0]
[1680596563158,108.3498,20.498,20.488,72.27040968]
[1680596563356,108.3498,20.498,20.488,7.3050432]
[1680596566865,108.3498,20.498,20.489,17.0]
[1680596573968,108.3498,20.498,20.488,17.0]
[1680596576257,108.3498,20.498,20.488,81.96536648]
[1680596580779,39.045448,20.507,20.49,28.2]
[1680596581076,109.5268,20.506,20.492,20.0]
[1680596581259,39.045448,20.507,20.492,20.0]
[1680596581460,39.045448,20.507,20.493,44.3050432]
[1680596581659,39.045448,20.507,20.493,148.64770785]
[1680596581866,39.045448,20.507,20.494,72.27040968]
[1680596582062,39.045448,20.507,20.495,37.0]
[1680596582368,39.045448,20.507,20.5,22.57]
[1680596585761,39.045448,20.507,20.495,95.89329817]
[1680596587081,39.045448,20.507,20.496,27.3050432]
[1680596587275,39.045448,20.507,20.497,37.0]
[1680596589879,39.045448,20.507,20.498,20.0]
[1680596590076,39.045448,20.507,20.499,17.0]
[1680596591181,39.045448,20.507,20.5,28.18]
[1680596591485,39.045448,20.507,20.501,17.0]
[1680596594881,20.0,20.513,20.499,7.3050432]
[1680596595585,20.0,20.513,20.497,20.0]
[1680596595883,17.0,20.512,20.496,20.0]
[1680596596185,20.0,20.511,20.497,7.3050432]
[1680596596365,17.0,20.51,20.497,7.3050432]
[1680596596873,20.0,20.513,20.498,17.0]
[1680596598270,20.0,20.513,20.498,7.3050432]
[1680596599778,20.0,20.514,20.498,7.3050432]
[1680596600080,17.0,20.513,20.498,7.3050432]
[1680596601285,111.9242,20.515,20.499,20.0]
[1680596601476,111.9242,20.515,20.499,37.0]
[1680596601779,20.0,20.514,20.499,24.3050432]
[1680596606787,19.91181037,20.514,20.499,24.3050432]
[1680596607082,19.91181037,20.514,20.499,85.27940968]
[1680596624002,19.91181037,20.514,20.499,68.27940968]
[1680596624195,17.0,20.513,20.499,68.27940968]
[1680596624495,20.0,20.512,20.499,68.27940968]
[1680596628193,19.91181037,20.514,20.499,60.97436648]
[1680596628395,17.0,20.513,20.499,60.97436648]
[1680596628597,17.0,20.513,20.496,20.0]
[1680596628803,17.0,20.513,20.497,85.27940968]
[1680596632005,17.0,20.513,20.498,68.27940968]
[1680596637205,17.0,20.513,20.499,7.3050432]
[1680596645316,20.0,20.512,20.499,7.3050432]
[1680596663225,22.61,20.51,20.498,60.97436648]
[1680596666144,19.513343,20.516,20.508,17.0]
[1680596666327,19.513343,20.516,20.51,19.502]
[1680596666523,19.513343,20.516,20.511,17.0]
[1680596667045,19.513343,20.516,20.511,24.3050432]
[1680596667243,19.513343,20.516,20.512,7.3050432]
[1680596667442,19.513343,20.516,20.511,17.0]
[1680596671531,20.0,20.524,20.511,17.0]
[1680596671732,20.0,20.524,20.51,22.66]
[1680596672247,20.0,20.524,20.511,7.3050432]
[1680596677256,20.0,20.524,20.509,60.97436648]
[1680596677651,20.0,20.524,20.506,20.0]
[1680596677852,20.0,20.524,20.508,20.0]
[1680596678041,20.0,20.524,20.509,17.0]
[1680596678540,20.0,20.524,20.51,7.3050432]
[1680596679757,17.0,20.523,20.51,7.3050432]
[1680596680057,17.0,20.523,20.508,60.97436648]
[1680596680358,20.0,20.522,20.508,60.97436648]
[1680596680542,17.0,20.521,20.508,60.97436648]
[1680596680733,20.0,20.52,20.508,60.97436648]
[1680596693053,20.0,20.52,20.508,68.27940968]
[1680596695561,20.0,20.52,20.508,60.97436648]
[1680596695967,20.0,20.52,20.507,7.3050432]
[1680596696168,20.0,20.52,20.504,175.26626648]
[1680596696369,20.0,20.52,20.505,37.0]
[1680596698367,48.29,20.52,20.505,37.0]
[1680596705364,20.0,20.52,20.505,37.0]
[1680596706072,20.0,20.52,20.505,20.0]
[1680596720390,20.0,20.52,20.505,74.25769982]
[1680596720888,20.0,20.52,20.506,7.3050432]
[1680596721188,20.0,20.52,20.507,20.0]
[1680596725289,20.0,20.52,20.507,27.3050432]
[1680596727603,20.0,20.52,20.507,7.3050432]
[1680596727802,20.0,20.52,20.505,54.25769982]
[1680596727803,48.29,20.52,20.505,54.25769982]
[1680596728094,20.0,20.518,20.505,54.25769982]
[1680596728297,20.0,20.517,20.504,114.2919]
[1680596728504,20.0,20.517,20.505,17.0]
[1680596728688,20.0,20.516,20.505,17.0]
[1680596735886,20.0,20.516,20.504,114.2919]
[1680596736082,20.0,20.514,20.5,7.3050432]
[1680596736290,20.0,20.514,20.496,170.95319982]
[1680596737005,17.0,20.513,20.497,43.56618706]
[1680596737992,17.0,20.513,20.498,17.0]
[1680596739003,17.0,20.513,20.497,17.0]
[1680596740218,17.0,20.513,20.497,71.25769982]
[1680596742616,20.0,20.512,20.497,71.25769982]
[1680596743314,20.0,20.512,20.497,78.56274302]
[1680596747313,235.0532,20.515,20.497,98.07674302]
[1680596747506,115.4617,20.515,20.498,40.0]
[1680596747707,115.4617,20.515,20.499,17.0]
[1680596747908,115.4617,20.515,20.499,78.56274302]
[1680596748218,115.4617,20.515,20.501,20.0]
[1680596748510,115.4617,20.515,20.502,17.0]
[1680596752109,115.4617,20.515,20.501,17.0]
[1680596752418,115.4617,20.515,20.501,24.3050432]
[1680596754222,28.32,20.52,20.501,24.3050432]
[1680596754528,108.6751,20.522,20.502,83.56618706]
[1680596754713,108.6751,20.522,20.503,17.0]
[1680596754916,108.6751,20.522,20.504,20.0]
[1680596755117,108.6751,20.522,20.505,17.0]
[1680596755421,108.6751,20.522,20.507,20.0]
[1680596755619,108.6751,20.522,20.508,17.0]
[1680596756111,108.6751,20.522,20.508,24.3050432]
[1680596760926,39.008315,20.527,20.508,24.3050432]
[1680596761126,39.008315,20.527,20.509,20.0]
[1680596761314,39.008315,20.527,20.51,17.0]
[1680596762130,39.008315,20.527,20.51,45.3]
[1680596762422,39.008315,20.527,20.511,20.0]
[1680596762631,39.008315,20.527,20.512,17.0]
[1680596765722,39.008315,20.527,20.513,7.3050432]
[1680596765924,39.008315,20.527,20.514,37.0]
[1680596766316,39.008315,20.527,20.515,7.3050432]
[1680596766528,39.008315,20.527,20.516,37.0]
[1680596768324,39.008315,20.527,20.51,82.57769982]
[1680596768514,39.008315,20.527,20.51,28.32]
[1680596769021,20.0,20.525,20.51,28.32]
[1680596769824,20.0,20.525,20.511,17.0]
[1680596772820,116.2358,20.526,20.511,17.0]
[1680596784551,20.0,20.525,20.511,17.0]
[1680596790254,20.0,20.525,20.509,17.0]
[1680596790456,20.0,20.525,20.508,17.0]
[1680596790658,20.0,20.525,20.509,7.3050432]
[1680596790954,20.0,20.525,20.51,17.0]
[1680596794545,20.0,20.525,20.508,17.0]
[1680596803470,20.0,20.525,20.508,24.3050432]
[1680596810780,20.0,20.525,20.508,7.3050432]
[1680596810979,22.63,20.52,20.508,7.3050432]
[1680596811179,22.63,20.52,20.501,113.1453]
[1680596811373,37.0,20.519,20.501,113.1453]
[1680596811779,37.0,20.519,20.5,22.63]
[1680596811780,20.0,20.518,20.5,22.63]
[1680596812082,20.0,20.517,20.495,7.3050432]
[1680596812271,17.0,20.516,20.495,7.3050432]
[1680596812467,17.0,20.516,20.499,7.3050432]
[1680596812664,20.0,20.515,20.499,7.3050432]
[1680596812874,111.3878,20.515,20.499,7.3050432]
[1680596813266,111.3878,20.515,20.5,48.31]
[1680596813467,111.3878,20.515,20.5,65.31]
[1680596813662,111.3878,20.515,20.501,7.3050432]
[1680596813866,111.3878,20.515,20.502,17.0]
[1680596814378,111.3878,20.515,20.503,7.3050432]
[1680596814583,111.3878,20.515,20.504,17.0]
[1680596826590,111.3878,20.515,20.5,7.3050432]
[1680596826792,20.0,20.514,20.496,14.70911924]
[1680596827107,20.0,20.514,20.497,20.0]
[1680596827493,20.0,20.514,20.497,27.3050432]
[1680596827912,111.3878,20.515,20.498,17.0]
[1680596828291,111.3878,20.515,20.499,20.0]
[1680596828492,111.3878,20.515,20.5,17.0]
[1680596830203,111.3878,20.515,20.499,17.0]
[1680596830816,20.0,20.514,20.499,17.0]
[1680596832318,111.3878,20.515,20.499,17.0]
[1680596832822,20.0,20.514,20.499,17.0]
[1680596836101,111.3878,20.515,20.499,17.0]
[1680596844431,111.3878,20.515,20.499,24.3050432]
[1680596850517,20.0,20.514,20.499,24.3050432]
[1680596851532,111.3878,20.515,20.499,24.3050432]
[1680596852733,20.0,20.514,20.499,24.3050432]
[1680596854532,111.3878,20.515,20.499,24.3050432]
[1680596869054,20.0,20.514,20.499,17.0]
[1680596869236,20.0,20.514,20.498,17.0]
[1680596871456,20.0,20.514,20.499,7.3050432]
[1680596871645,20.0,20.514,20.5,17.0]
[1680596873052,20.0,20.514,20.5,24.3050432]
[1680596874051,111.3878,20.515,20.5,24.3050432]
[1680596874457,111.3878,20.515,20.5,74.64757635]
[1680596874754,111.3878,20.515,20.501,20.0]
[1680596874956,111.3878,20.515,20.502,17.0]
[1680596875156,111.3878,20.515,20.502,24.3050432]
[1680596880361,111.3878,20.515,20.51,22.44]
[1680596884647,111.3878,20.515,20.511,17.0]
[1680596886563,116.2358,20.526,20.511,17.0]
[1680596889267,66.2358,20.526,20.511,17.0]
[1680596906174,66.2358,20.526,20.51,28.13]
[1680596906377,66.2358,20.526,20.508,14.50874383]
[1680596906576,20.0,20.525,20.505,20.0]
[1680596906779,20.0,20.525,20.506,20.0]
[1680596910490,20.0,20.525,20.507,17.0]
[1680596914995,66.2358,20.526,20.507,17.0]
[1680596915389,20.0,20.525,20.507,17.0]
[1680596916790,20.0,20.525,20.506,20.0]
[1680596917179,20.0,20.525,20.507,17.0]
[1680596930404,66.2358,20.526,20.508,20.0]
[1680596930697,66.2358,20.526,20.509,17.0]
[1680596932608,20.0,20.525,20.509,17.0]
[1680596933898,20.0,20.525,20.508,17.0]
[1680596935716,20.0,20.525,20.507,17.0]
[1680596936102,20.0,20.525,20.508,20.0]
[1680596936301,20.0,20.525,20.509,17.0]
[1680596937399,20.0,20.525,20.508,17.0]
[1680596939111,66.2358,20.526,20.508,17.0]
[1680596939698,20.0,20.525,20.508,17.0]
[1680596940716,66.2358,20.526,20.508,17.0]
[1680596943127,66.2358,20.526,20.509,20.0]
[1680596943316,66.2358,20.526,20.51,17.0]
[1680596947324,66.2358,20.526,20.51,39.63]
[1680596948429,66.2358,20.526,20.511,20.0]
[1680596948622,66.2358,20.526,20.512,17.0]
[1680596949215,66.2358,20.526,20.511,17.0]
[1680596949421,66.2358,20.526,20.512,20.0]
[1680596949621,66.2358,20.526,20.513,17.0]
[1680596951414,28.13,20.531,20.514,20.0]
[1680596951628,28.13,20.531,20.52,22.63]
[1680596951817,28.13,20.531,20.521,17.0]
[1680596952127,28.13,20.531,20.522,20.0]
[1680596952328,28.13,20.531,20.523,17.0]
[1680596954632,28.13,20.531,20.521,17.0]
[1680596960029,28.13,20.531,20.522,20.0]
[1680596960226,28.13,20.531,20.523,17.0]
[1680596961246,28.13,20.531,20.521,17.0]
[1680596963519,28.13,20.531,20.522,20.0]
[1680596963734,112.3955,20.533,20.523,17.0]
[1680596965031,112.3955,20.533,20.521,17.0]
[1680596976443,112.3955,20.533,20.517,20.0]
[1680596976646,22.63,20.53,20.51,141.6861]
[1680596976840,22.63,20.53,20.507,19.505]
[1680596977034,40.0,20.529,20.51,22.63]
[1680596978230,40.0,20.529,20.511,17.0]
[1680596978759,40.0,20.529,20.511,24.3050432]
[1680596982751,112.3955,20.533,20.513,20.0]
[1680596983060,112.3955,20.533,20.514,27.3050432]
[1680596983255,112.3955,20.533,20.515,17.0]
[1680596983445,112.3955,20.533,20.516,20.0]
[1680596983648,112.3955,20.533,20.518,20.0]
[1680596983859,112.3955,20.533,20.519,17.0]
[1680596984546,112.3955,20.533,20.518,17.0]
[1680596985551,112.3955,20.533,20.517,17.0]
[1680596985754,20.0,20.532,20.517,17.0]
[1680596988665,112.3955,20.533,20.517,17.0]
[1680596989565,20.0,20.532,20.517,17.0]
[1680596991259,112.3955,20.533,20.517,17.0]
[1680596991462,20.0,20.532,20.517,17.0]
[1680596991960,112.3955,20.533,20.517,17.0]
[1680596994559,114.1992,20.537,20.521,19.491]
[1680596994767,114.1992,20.537,20.522,37.0]
[1680596994961,114.1992,20.537,20.522,150.37094856]
[1680596995164,114.1992,20.537,20.523,7.3050432]
[1680596995347,114.1992,20.537,20.524,17.0]
[1680596995551,114.1992,20.537,20.525,40.0]
[1680596995861,114.1992,20.537,20.526,17.0]
[1680596996061,114.1992,20.537,20.527,20.0]
[1680596996365,114.1992,20.537,20.528,17.0]
[1680597001173,114.1992,20.537,20.528,24.3050432]
[1680597003256,114.1992,20.537,20.529,20.0]
[1680597003462,114.1992,20.537,20.53,17.0]
[1680597005261,114.1992,20.537,20.529,17.0]
[1680597010977,20.0,20.541,20.529,17.0]
[1680597011180,20.0,20.541,20.53,28.21]
[1680597011381,20.0,20.541,20.531,37.0]
[1680597011570,20.0,20.541,20.532,20.0]
[1680597011766,20.0,20.541,20.533,17.0]
[1680597011966,20.0,20.541,20.532,27.3050432]
[1680597012181,20.0,20.541,20.531,60.29326906]
[1680597012375,20.0,20.541,20.532,17.0]
[1680597012578,20.0,20.541,20.531,17.0]
[1680597014376,20.0,20.545,20.531,17.0]
[1680597014769,109.2208,20.546,20.531,17.0]
[1680597015384,20.0,20.545,20.531,17.0]
[1680597015584,20.0,20.545,20.53,28.21]
[1680597016484,109.2208,20.546,20.53,28.21]
[1680597016684,20.0,20.545,20.53,28.21]
[1680597016874,20.0,20.545,20.531,17.0]
[1680597018593,109.2208,20.546,20.531,17.0]
[1680597020782,109.2208,20.546,20.528,14.6384066]
[1680597021079,109.2208,20.546,20.529,17.0]
[1680597021295,109.2208,20.546,20.529,20.0]
[1680597021482,109.2208,20.546,20.53,17.0]
[1680597021680,109.2208,20.546,20.53,45.27]
[1680597021882,109.2208,20.546,20.53,52.5750432]
[1680597022393,20.0,20.545,20.53,52.5750432]
[1680597023583,109.2208,20.546,20.53,52.5750432]
[1680597024198,20.0,20.545,20.53,52.5750432]
[1680597024692,109.2208,20.546,20.53,52.5750432]
[1680597025494,20.0,20.545,20.53,52.5750432]
[1680597025697,109.2208,20.546,20.53,52.5750432]
[1680597026093,20.0,20.545,20.53,52.5750432]
[1680597026689,109.2208,20.546,20.53,52.5750432]
[1680597027196,109.2208,20.546,20.531,20.0]
[1680597027395,109.2208,20.546,20.532,17.0]
[1680597027697,20.0,20.545,20.532,17.0]
[1680597027882,20.0,20.545,20.531,17.0]
[1680597028597,109.2208,20.546,20.531,17.0]
[1680597030999,109.2208,20.546,20.531,24.3050432]
[1680597037208,20.0,20.545,20.531,24.3050432]
[1680597038709,109.2208,20.546,20.531,24.3050432]
[1680597039801,20.0,20.545,20.531,24.3050432]
[1680597040691,109.2208,20.546,20.531,24.3050432]
[1680597041092,20.0,20.545,20.531,24.3050432]
[1680597041507,109.2208,20.546,20.531,24.3050432]
[1680597041707,20.0,20.545,20.531,24.3050432]
[1680597045398,20.0,20.545,20.531,7.3050432]
[1680597046695,20.0,20.545,20.532,17.0]
[1680597054311,109.2208,20.546,20.532,17.0]
[1680597055317,109.2208,20.546,20.532,7.3050432]
[1680597055517,109.2208,20.546,20.533,17.0]
[1680597057416,20.0,20.545,20.533,17.0]
[1680597058816,109.2208,20.546,20.533,17.0]
[1680597063907,20.0,20.545,20.533,17.0]
[1680597070630,109.2208,20.546,20.533,17.0]
[1680597071530,20.0,20.545,20.533,17.0]
[1680597096667,109.2208,20.546,20.533,17.0]
[1680597097268,20.0,20.545,20.533,17.0]
[1680597112791,20.0,20.545,20.529,14.45448664]
[1680597112967,17.0,20.544,20.528,7.3050432]
[1680597113367,20.0,20.543,20.528,7.3050432]
[1680597114278,20.0,20.543,20.529,17.0]
[1680597121084,20.0,20.543,20.527,17.0]
[1680597125090,20.0,20.543,20.527,77.29326906]
[1680597133701,20.0,20.543,20.527,84.59831226]
[1680597142103,39.47,20.545,20.527,84.59831226]
[1680597153412,39.47,20.545,20.527,84.59831226]
[1680597157108,19.47,20.545,20.528,20.0]
[1680597157303,19.47,20.545,20.529,17.0]
[1680597157709,39.47,20.545,20.529,17.0]
[1680597158516,20.0,20.544,20.529,17.0]
[1680597162020,20.0,20.544,20.53,22.48]
[1680597162209,20.0,20.544,20.531,17.0]
[1680597162928,20.0,20.544,20.528,7.3050432]
[1680597162929,20.0,20.544,20.527,60.29326906]
[1680597163119,22.44,20.54,20.52,22.48]
[1680597163325,22.44,20.54,20.527,20.0]
[1680597163823,20.0,20.539,20.527,20.0]
[1680597164720,19.476,20.538,20.52,22.48]
[1680597164905,20.0,20.537,20.52,22.48]
[1680597165925,20.0,20.536,20.52,22.48]
[1680597166316,20.0,20.536,20.521,7.3050432]
[1680597167219,20.0,20.536,20.522,17.0]
[1680597168027,131.014,20.537,20.522,17.0]
[1680597168220,131.014,20.537,20.522,24.3050432]
[1680597171629,20.0,20.536,20.522,24.3050432]
[1680597172530,131.014,20.537,20.522,24.3050432]
[1680597174229,131.014,20.537,20.522,77.29959595]
[1680597176431,20.0,20.536,20.522,77.29959595]
[1680597177420,131.014,20.537,20.522,77.29959595]
[1680597177622,20.0,20.536,20.522,77.29959595]
[1680597180037,131.014,20.537,20.522,77.29959595]
[1680597188347,131.014,20.537,20.522,24.3050432]
[1680597189552,20.0,20.536,20.522,24.3050432]
[1680597190347,131.014,20.537,20.522,24.3050432]
[1680597192250,20.0,20.536,20.522,24.3050432]
[1680597194843,20.0,20.536,20.522,17.0]
[1680597195045,20.0,20.536,20.521,17.0]
[1680597196751,20.0,20.536,20.521,24.3050432]
[1680597197452,20.0,20.536,20.521,77.29959595]
[1680597198555,131.014,20.537,20.521,77.29959595]
[1680597198757,131.014,20.537,20.521,24.3050432]
[1680597198758,20.0,20.536,20.521,24.3050432]
[1680597200665,20.0,20.536,20.522,52.99455275]
[1680597200955,20.0,20.536,20.523,17.0]
[1680597201459,131.014,20.537,20.523,17.0]
[1680597201645,131.014,20.537,20.523,77.29959595]
[1680597203259,20.0,20.536,20.523,77.29959595]
[1680597226687,20.0,20.536,20.523,69.99455275]
[1680597232387,20.0,20.536,20.523,52.99455275]
[1680597232787,20.0,20.536,20.52,29.7850432]
[1680597232990,20.0,20.536,20.521,17.0]
[1680597233176,20.0,20.536,20.521,69.99455275]
[1680597233482,20.0,20.536,20.522,52.99455275]
[1680597251699,131.014,20.537,20.522,52.99455275]
[1680597251902,131.014,20.537,20.523,17.0]
[1680597252301,131.014,20.537,20.524,52.99455275]
[1680597252499,131.014,20.537,20.525,17.0]
[1680597252883,131.014,20.537,20.526,52.99455275]
[1680597264113,131.014,20.537,20.52,29.7850432]
[1680597264312,131.014,20.537,20.521,17.0]
[1680597264515,131.014,20.537,20.521,69.99455275]
[1680597264702,131.014,20.537,20.522,52.99455275]
[1680597264899,131.014,20.537,20.523,17.0]
[1680597265315,131.014,20.537,20.524,52.99455275]
[1680597265523,131.014,20.537,20.525,17.0]
[1680597265915,131.014,20.537,20.525,69.99455275]
[1680597267911,131.014,20.537,20.525,77.29959595]
[1680597268112,19.467,20.547,20.53,22.58]
[1680597268412,19.467,20.547,20.531,17.0]
[1680597268611,20.0,20.546,20.531,17.0]
[1680597272109,20.0,20.546,20.53,22.58]
[1680597272316,20.0,20.544,20.53,22.58]
[1680597279225,20.0,20.546,20.53,22.58]
[1680597279424,20.0,20.546,20.531,17.0]
[1680597281634,20.0,20.546,20.53,22.58]
[1680597281934,20.0,20.544,20.53,22.58]
[1680597286018,20.0,20.546,20.53,22.58]
[1680597287935,20.0,20.546,20.531,17.0]
[1680597297242,20.0,20.546,20.53,22.58]
[1680597297438,17.0,20.545,20.53,22.58]
[1680597297631,20.0,20.544,20.53,22.58]
[1680597305440,20.0,20.544,20.526,118.5302]
[1680597305642,20.0,20.544,20.527,37.0]
[1680597305955,20.0,20.544,20.527,97.21076262]
[1680597306139,20.0,20.544,20.528,52.90571942]
[1680597316860,22.44,20.54,20.528,52.90571942]
[1680597317054,40.0,20.539,20.526,118.5302]
[1680597320061,40.0,20.539,20.526,171.43591942]
[1680597323760,40.0,20.539,20.526,52.90571942]
[1680597330957,20.0,20.539,20.526,52.90571942]
[1680597331158,20.0,20.539,20.527,17.0]
[1680597331464,20.0,20.539,20.528,52.90571942]
[1680597332465,20.0,20.538,20.528,52.90571942]
[1680597333468,20.0,20.539,20.528,52.90571942]
[1680597335069,20.0,20.541,20.528,52.90571942]
[1680597336064,20.0,20.54,20.528,52.90571942]
[1680597336282,20.0,20.539,20.528,52.90571942]
[1680597341464,20.0,20.541,20.528,52.90571942]
[1680597341671,20.0,20.54,20.528,52.90571942]
[1680597341862,20.0,20.539,20.528,52.90571942]
[1680597343375,20.0,20.542,20.528,52.90571942]
[1680597343565,19.468,20.546,20.529,17.0]
[1680597343957,19.468,20.546,20.53,52.90571942]